{"text_format":"3","workbook":"xlsx","n_sheets":1,"sheets":["Blutdruck und Glukose"],"not_rendered":{"defined_names":9},"read":"whole","date_system":"1900"}

{"sheet":"Blutdruck und Glukose","index":0,"n_rows":13,"n_cols":11,"rows_kept":13,"merged":[[0,1,4,3],[0,4,0,9],[1,4,1,6],[1,7,1,9],[3,7,4,7],[3,8,4,8],[3,9,4,9]]}
[null,"Blutdruck-\nund Glukoseprotokoll",null,null,"Passen Sie die Skalierungswerte in den Zellen E2 bis J5 unten an."]
[{"$nulls":4},"BLUTDRUCK",null,null,"GLUKOSESKALA"]
[{"$nulls":4},120,"SYSTOLISCH",140,70,100,150]
[{"$nulls":4},80,"DIASTOLISCH",90,"NIEDRIG","NORMAL","HOCH"]
[{"$nulls":4},"ZIELBLUTDRUCK",null,"HAUSARZT ANRUFEN"]
[null,"Datum","Uhrzeit","Ereignis","Systolisch","Diastolisch","Herzfrequenz","Glukose","Spiegel","Status","Anmerkungen"]
[null,{"$f":"TODAY()","v":"2018-06-28"},"06:00:00","Beim Aufstehen",129,79,72,55,{"$f":"BlutdruckUndGlukose[[#This Row],[Glukose]]","v":55},{"$f":"IFERROR(IF(BlutdruckUndGlukose[[#This Row],[Spiegel]]=0,\"\",IF(BlutdruckUndGlukose[[#This Row],[Spiegel]]<=GNiedrig,\"NIEDRIG\",IF(AND(BlutdruckUndGlukose[[#This Row],[Spiegel]]>GNiedrig,BlutdruckUndGlukose[[#This Row],[Spiegel]]<GHoch),\"NORMAL\",\"HOCH\"))), \"\")","v":"NIEDRIG"}]
[null,{"$f":"TODAY()","v":"2018-06-28"},"07:00:00","Vor dem Essen",120,80,74,70,{"$f":"BlutdruckUndGlukose[[#This Row],[Glukose]]","v":70},{"$f":"IFERROR(IF(BlutdruckUndGlukose[[#This Row],[Spiegel]]=0,\"\",IF(BlutdruckUndGlukose[[#This Row],[Spiegel]]<=GNiedrig,\"NIEDRIG\",IF(AND(BlutdruckUndGlukose[[#This Row],[Spiegel]]>GNiedrig,BlutdruckUndGlukose[[#This Row],[Spiegel]]<GHoch),\"NORMAL\",\"HOCH\"))), \"\")","v":"NIEDRIG"}]
[null,"2018-06-28","09:00:00","Nach dem Essen",133,80,75,75,{"$f":"BlutdruckUndGlukose[[#This Row],[Glukose]]","v":75},{"$f":"IFERROR(IF(BlutdruckUndGlukose[[#This Row],[Spiegel]]=0,\"\",IF(BlutdruckUndGlukose[[#This Row],[Spiegel]]<=GNiedrig,\"NIEDRIG\",IF(AND(BlutdruckUndGlukose[[#This Row],[Spiegel]]>GNiedrig,BlutdruckUndGlukose[[#This Row],[Spiegel]]<GHoch),\"NORMAL\",\"HOCH\"))), \"\")","v":"NORMAL"}]
[null,"2018-06-28","10:00:00","Nur BD",143,91,75,190,{"$f":"BlutdruckUndGlukose[[#This Row],[Glukose]]","v":190},{"$f":"IFERROR(IF(BlutdruckUndGlukose[[#This Row],[Spiegel]]=0,\"\",IF(BlutdruckUndGlukose[[#This Row],[Spiegel]]<=GNiedrig,\"NIEDRIG\",IF(AND(BlutdruckUndGlukose[[#This Row],[Spiegel]]>GNiedrig,BlutdruckUndGlukose[[#This Row],[Spiegel]]<GHoch),\"NORMAL\",\"HOCH\"))), \"\")","v":"HOCH"}]
[null,"2018-06-28","12:00:00","Vor dem Essen",141,84,70,140,{"$f":"BlutdruckUndGlukose[[#This Row],[Glukose]]","v":140},{"$f":"IFERROR(IF(BlutdruckUndGlukose[[#This Row],[Spiegel]]=0,\"\",IF(BlutdruckUndGlukose[[#This Row],[Spiegel]]<=GNiedrig,\"NIEDRIG\",IF(AND(BlutdruckUndGlukose[[#This Row],[Spiegel]]>GNiedrig,BlutdruckUndGlukose[[#This Row],[Spiegel]]<GHoch),\"NORMAL\",\"HOCH\"))), \"\")","v":"NORMAL"}]
[null,{"$f":"TODAY()","v":"2018-06-28"},"15:00:00","Nach dem Essen",132,80,68,90,{"$f":"BlutdruckUndGlukose[[#This Row],[Glukose]]","v":90},{"$f":"IFERROR(IF(BlutdruckUndGlukose[[#This Row],[Spiegel]]=0,\"\",IF(BlutdruckUndGlukose[[#This Row],[Spiegel]]<=GNiedrig,\"NIEDRIG\",IF(AND(BlutdruckUndGlukose[[#This Row],[Spiegel]]>GNiedrig,BlutdruckUndGlukose[[#This Row],[Spiegel]]<GHoch),\"NORMAL\",\"HOCH\"))), \"\")","v":"NORMAL"},"BD-Medikament zum Essen eingenommen"]
[null,"Mittelwerte",null,null,{"$f":"SUBTOTAL(101,BlutdruckUndGlukose[Systolisch])","v":133},{"$f":"SUBTOTAL(101,BlutdruckUndGlukose[Diastolisch])","v":{"v":82.33333333333333,"d":"82"}},{"$f":"SUBTOTAL(101,BlutdruckUndGlukose[Herzfrequenz])","v":{"v":72.33333333333333,"d":"72"}},{"$f":"SUBTOTAL(101,BlutdruckUndGlukose[Glukose])","v":{"v":103.33333333333333,"d":"103"}}]